bitfinex/quotes_SOLUSD_20250710
["timestamp","ask_amount","ask_price","bid_price","bid_amount"]
[1752171815577,0.71,160.42,160.41,104.96998716]
[1752171815792,0.71,160.42,160.41,137.62998716]
[1752171816099,26.71,160.44,160.41,137.62998716]
[1752171816284,26.0,160.44,160.41,104.96998716]
[1752171816593,0.71,160.43,160.42,32.66]
[1752171816787,0.03,160.45,160.42,32.66]
[1752171816992,0.03,160.45,160.41,104.96998716]
[1752171817202,0.03,160.45,160.42,32.66]
[1752171817203,0.71,160.44,160.42,32.66]
[1752171817402,26.74,160.45,160.42,32.66]
[1752171817711,0.71,160.44,160.42,32.66]
[1752171818213,26.03,160.45,160.42,32.66]
[1752171818378,26.74,160.45,160.42,32.66]
[1752171818779,26.74,160.45,160.42,110.72998716]
[1752171821406,0.71,160.44,160.42,110.72998716]
[1752171821589,0.71,160.43,160.42,110.72998716]
[1752171821911,26.03,160.45,160.42,110.72998716]
[1752171821912,26.0,160.44,160.42,110.72998716]
[1752171822087,26.71,160.44,160.42,110.72998716]
[1752171824716,0.71,160.43,160.42,110.72998716]
[1752171827311,0.71,160.43,160.42,78.06998716]
[1752171827492,0.71,160.43,160.42,110.72998716]
[1752171827687,4.44994888,160.43,160.42,110.72998716]
[1752171827916,4.44994888,160.43,160.41,26.9]
[1752171827917,26.0,160.42,160.41,26.9]
[1752171828085,26.71,160.42,160.41,59.56]
[1752171830086,30.45018202,160.42,160.41,59.56]
[1752171830727,33.48500516,160.42,160.41,59.56]
[1752171831020,7.48500516,160.42,160.41,59.56]
[1752171831217,7.62716673,160.42,160.41,26.9]
[1752171831422,14.67894808,160.42,160.41,59.56]
[1752171831601,40.67894808,160.42,160.41,26.9]
[1752171831804,14.67894808,160.42,160.41,26.9]
[1752171832004,49.54092469,160.42,160.41,59.56]
[1752171832214,23.54092469,160.42,160.41,59.56]
[1752171833297,3.4605,160.42,160.41,59.56]
[1752171834812,3.4605,160.42,160.41,32.66]
[1752171834993,0.71,160.44,160.41,32.66]
[1752171835196,26.0,160.43,160.41,32.66]
[1752171836221,26.71,160.43,160.41,32.66]
[1752171836426,26.0,160.42,160.41,32.66]
[1752171836726,26.0,160.42,160.41,110.72998716]
[1752171838930,26.0,160.43,160.41,110.72998716]
[1752171839723,26.0,160.44,160.41,110.72998716]
[1752171840122,26.0,160.43,160.41,110.72998716]
[1752171842322,26.67,160.43,160.41,110.72998716]
[1752171842821,0.67,160.42,160.41,110.72998716]
[1752171843017,26.0,160.43,160.41,110.72998716]
[1752171843200,26.67,160.43,160.41,110.72998716]
[1752171843398,26.0,160.43,160.41,110.72998716]
[1752171843844,0.67,160.42,160.41,78.06998716]
[1752171844007,0.67,160.42,160.41,32.64]
[1752171844329,0.67,160.42,160.37,78.06998716]
[1752171844536,0.67,160.42,160.38,32.64]
[1752171846836,26.03,160.43,160.37,78.06998716]
[1752171847129,0.67,160.41,160.38,32.64]
[1752171848620,0.67,160.41,160.38,110.70998716]
[1752171851119,26.03,160.43,160.38,110.70998716]
[1752171851120,0.67,160.4,160.38,110.70998716]
[1752171851719,26.67,160.42,160.38,110.70998716]
[1752171851919,26.0,160.42,160.38,110.70998716]
[1752171852114,0.67,160.41,160.38,110.70998716]
[1752171852934,0.67,160.41,160.38,78.06998716]
[1752171853114,0.67,160.4,160.39,32.62]
[1752171853620,0.67,160.4,160.38,78.06998716]
[1752171853811,0.67,160.4,160.39,32.62]
[1752171854337,0.67,160.4,160.39,110.68998716]
[1752171855009,0.67,160.4,160.39,78.06998716]
[1752171855328,33.57427151,160.4,160.39,78.06998716]
[1752171855922,33.57427151,160.4,160.39,110.68998716]
[1752171856524,33.57427151,160.4,160.39,32.62]
[1752171856914,0.28432314,160.39,160.34,104.98998716]
[1752171857116,26.0,160.37,160.35,32.62]
[1752171857314,26.67,160.37,160.35,110.68998716]
[1752171857730,0.67,160.36,160.35,110.68998716]
[1752171858209,0.67,160.36,160.35,78.06998716]
[1752171858419,26.95432314,160.36,160.35,78.06998716]
[1752171858611,26.95432314,160.36,160.35,110.68998716]
[1752171859442,30.69590458,160.36,160.34,26.92]
[1752171859619,30.02590458,160.36,160.35,32.62]
[1752171860345,30.69590458,160.36,160.35,32.62]
[1752171860541,26.95432314,160.36,160.35,32.62]
[1752171860719,26.0,160.36,160.35,32.62]
[1752171860919,0.67,160.38,160.35,32.62]
[1752171860920,26.0,160.37,160.35,32.62]
[1752171861442,26.67,160.37,160.35,32.62]
[1752171861634,0.67,160.36,160.35,32.62]
[1752171862239,26.0,160.37,160.35,32.62]
[1752171863023,0.67,160.39,160.35,110.68998716]
[1752171863415,26.0,160.37,160.35,110.68998716]
[1752171864449,26.67,160.37,160.35,110.68998716]
[1752171865831,26.0,160.37,160.35,110.68998716]
[1752171866326,0.67,160.36,160.35,110.68998716]
[1752171867447,0.67,160.36,160.35,78.06998716]
[1752171867627,0.67,160.36,160.35,110.68998716]
[1752171868554,26.0,160.37,160.35,110.68998716]
[1752171868738,26.65,160.37,160.35,110.68998716]
[1752171869251,0.65,160.36,160.35,110.68998716]
[1752171870466,0.65,160.36,160.35,78.06998716]
[1752171870757,0.65,160.36,160.35,110.68998716]
[1752171872032,0.65,160.36,160.35,78.06998716]
[1752171872232,0.65,160.36,160.35,110.68998716]
[1752171874443,0.65,160.36,160.35,110.66998716]
[1752171876052,26.65,160.36,160.35,110.66998716]
[1752171876243,30.67590458,160.36,160.35,78.06998716]
[1752171876450,0.28432314,160.35,160.34,26.92]
[1752171876631,0.93432314,160.35,160.34,59.52]
[1752171877241,26.0,160.35,160.34,137.58998716]
[1752171877956,0.65,160.36,160.34,137.58998716]
[1752171878459,29.74143654,160.37,160.34,137.58998716]
[1752171878460,0.65,160.35,160.34,137.58998716]
[1752171878840,26.65,160.37,160.34,137.58998716]
[1752171879147,26.0,160.35,160.34,137.58998716]
[1752171879560,26.0,160.37,160.34,137.58998716]
[1752171879765,0.65,160.36,160.34,137.58998716]
[1752171880069,26.0,160.37,160.34,137.58998716]
[1752171880377,0.65,160.35,160.34,137.58998716]
[1752171881361,26.65,160.37,160.34,137.58998716]
[1752171881565,29.74136601,160.37,160.34,137.58998716]
[1752171881778,0.65,160.36,160.34,137.58998716]
[1752171882064,0.65,160.35,160.34,137.58998716]
[1752171882482,26.65,160.35,160.34,137.58998716]
[1752171882760,29.76202314,160.35,160.34,26.92]
[1752171883645,29.76202314,160.35,160.34,59.52]
[1752171883849,29.4777,160.35,160.34,59.52]
[1752171884249,33.21951478,160.35,160.34,59.52]
[1752171884562,29.4777,160.35,160.34,59.52]
[1752171885145,28.8277,160.35,160.34,59.52]
[1752171885371,30.3914155,160.37,160.34,59.52]
[1752171885542,26.0,160.36,160.34,59.52]
[1752171885741,26.65,160.36,160.34,59.52]
[1752171886055,26.0,160.36,160.34,137.58998716]
[1752171887778,26.65,160.36,160.34,137.58998716]
[1752171887951,0.65,160.36,160.34,137.58998716]
[1752171888264,0.65,160.35,160.34,137.58998716]
[1752171888569,0.65,160.35,160.34,137.56998716]
[1752171890562,26.65,160.36,160.34,137.56998716]
[1752171890866,26.0,160.36,160.34,137.56998716]
[1752171891273,0.03,160.37,160.34,137.56998716]
[1752171891453,0.03,160.37,160.35,16.78468397]
[1752171891767,0.03,160.37,160.36,49.36468397]
[1752171892751,0.68,160.37,160.34,104.98998716]
[1752171892946,0.65,160.36,160.35,32.58]
[1752171893478,0.03,160.37,160.35,32.58]
[1752171893679,0.65,160.36,160.34,104.98998716]
[1752171893850,0.65,160.36,160.35,32.58]
[1752171894173,0.03,160.37,160.35,32.58]
[1752171894554,0.68,160.37,160.35,32.58]
[1752171894751,0.03,160.37,160.35,32.58]
[1752171897856,0.75,160.37,160.35,32.58]
[1752171899066,0.03,160.37,160.34,26.92]
[1752171899272,0.75,160.37,160.35,32.58]
[1752171899670,0.72,160.36,160.34,26.92]
[1752171899976,3.77142361,160.37,160.35,32.58]
[1752171900353,0.72,160.36,160.35,32.58]
[1752171900546,3.5968,160.36,160.35,32.58]
[1752171900775,26.0,160.35,160.34,104.98998716]
[1752171900977,26.28432314,160.34,160.31,78.06998716]
[1752171901267,27.00432314,160.35,160.27,78.06998716]
[1752171901268,0.28432314,160.31,160.27,78.06998716]
[1752171901474,3.0162,160.29,160.25,0.06]
[1752171901780,1.00432314,160.28,160.25,0.06]
[1752171901955,1.00432314,160.28,160.26,32.58]
[1752171902151,0.72,160.27,160.25,0.06]
[1752171902780,0.28432314,160.28,160.26,32.58]
[1752171902963,3.0162,160.29,160.26,32.58]
[1752171903270,26.0,160.27,160.26,32.58]
[1752171903862,26.72,160.27,160.26,32.58]
[1752171904186,0.14216157,160.25,160.19,0.1]
[1752171904388,0.72,160.24,160.19,0.1]
[1752171904679,26.0,160.2,160.19,0.1]
[1752171904846,0.28432314,160.19,160.13,104.98998716]
[1752171905053,0.28432314,160.17,160.14,32.58]
[1752171905271,26.0,160.15,160.14,32.58]
[1752171906160,26.0,160.16,160.13,78.06998716]
[1752171906364,26.0,160.16,160.14,32.6]
[1752171907473,26.0,160.16,160.13,78.06998716]
[1752171907666,26.0,160.16,160.12,0.1]
[1752171907667,2.8881,160.13,160.12,0.1]
[1752171907987,2.8881,160.13,160.12,32.7]
[1752171907988,3.17242314,160.13,160.12,32.7]
[1752171908277,3.89242314,160.13,160.12,32.7]
[1752171909160,7.63937873,160.13,160.12,32.7]
[1752171909562,3.89242314,160.13,160.12,32.7]
[1752171910269,7.63937873,160.13,160.12,32.7]
[1752171910581,3.89242314,160.13,160.12,32.7]
[1752171910752,3.6081,160.13,160.12,32.7]
[1752171910954,7.63937873,160.13,160.12,32.7]
[1752171911250,7.63937873,160.13,160.12,0.1]
[1752171911672,7.63937873,160.13,160.12,32.7]
[1752171912176,7.63937873,160.13,160.1,112.27789661]
[1752171912177,26.0,160.09,160.03,0.1]
[1752171912360,0.28432314,160.08,160.03,0.1]
[1752171912554,0.72,160.07,160.04,32.6]
[1752171912756,0.72,160.07,160.03,0.1]
[1752171913060,0.28432314,160.05,160.03,0.1]
[1752171913260,30.03338587,160.04,160.03,0.1]
[1752171913572,26.0,160.02,159.95,26.94]
[1752171913774,0.72,160.01,159.96,16.78468397]
[1752171913957,1.00432314,160.01,159.97,32.6]
[1752171914158,1.00432314,160.01,159.95,26.94]
[1752171914364,3.6505,160.0,159.96,32.62]
[1752171914762,2.9305,160.0,159.96,32.62]
[1752171914962,2.9305,160.0,159.97,16.78468397]
[1752171915267,2.9305,160.0,159.96,32.62]
[1752171915464,0.72,159.99,159.96,32.62]
[1752171915790,26.0,159.97,159.96,32.62]
[1752171915968,26.72,159.97,159.96,32.68]
[1752171916360,2.9305,160.0,159.97,16.78468397]
[1752171916561,3.6505,160.0,159.97,16.78468397]
[1752171916865,28.9305,160.0,159.97,16.78468397]
[1752171917170,28.9305,160.0,159.97,17.14468397]
[1752171917683,2.9607,160.04,159.98,0.36]
[1752171917979,2.9607,160.04,160.0,16.78468397]
[1752171918158,26.0,160.04,160.01,0.36]
[1752171918363,0.72,160.06,160.02,32.74]
[1752171918690,26.72,160.05,160.02,32.74]
[1752171918876,0.72,160.05,160.02,32.74]
[1752171919586,26.0,160.05,160.02,32.74]
[1752171919785,26.0,160.04,160.02,32.74]
[1752171919994,4.46842784,160.07,160.02,32.74]
[1752171920180,0.72,160.04,160.02,32.74]
[1752171920381,0.72,160.03,160.02,32.74]
[1752171921784,13.11932807,160.07,160.02,32.74]
[1752171921785,0.72,160.06,160.02,32.74]
[1752171922020,26.72,160.05,160.02,32.74]
[1752171922194,26.0,160.05,160.02,32.74]
[1752171922398,0.72,160.04,160.02,32.74]
[1752171922579,0.72,160.04,159.96,16.92684554]
[1752171922902,0.72,160.04,159.97,32.78]
[1752171923400,0.72,160.04,159.98,32.78]
[1752171923703,3.749297,160.03,159.98,32.78]
[1752171924090,26.0,160.0,159.98,32.78]
[1752171924274,29.5559,160.0,159.98,32.78]
[1752171924472,29.5559,160.0,159.96,16.78468397]
[1752171924679,29.5559,160.0,159.97,32.78]
[1752171924885,29.5559,160.0,159.98,32.8]
[1752171925100,28.8359,160.0,159.98,32.8]
[1752171925691,2.8359,160.0,159.98,32.8]
[1752171925892,2.8359,160.0,159.93,89.14216157]
[1752171925893,26.0,159.96,159.79,11.6082]
[1752171926103,3.0,159.88,159.84,0.36]
[1752171926272,3.0,159.88,159.85,32.96]
[1752171926473,3.0,159.88,159.86,0.36]
[1752171926668,3.0,159.88,159.87,0.36]
[1752171927021,3.0,159.88,159.85,32.96]
[1752171927210,26.72,159.87,159.8,0.36]
[1752171927396,26.0,159.86,159.8,0.36]
[1752171927697,26.0,159.86,159.81,32.98]
[1752171927894,26.0,159.86,159.76,26.98]
[1752171927895,26.72,159.85,159.76,26.98]
[1752171928080,0.72,159.84,159.76,27.34]
[1752171928271,0.14216157,159.83,159.76,26.98]
[1752171928472,0.72,159.82,159.76,26.98]
[1752171928682,0.28432314,159.78,159.74,6.89089418]
[1752171928886,0.14216157,159.76,159.75,33.3]
[1752171929195,27.14648471,159.76,159.75,33.5]
[1752171929503,26.14216157,159.75,159.74,3.19729418]
[1752171929683,26.14216157,159.75,159.74,0.22369418]
[1752171929995,30.61803011,159.75,159.74,0.22369418]
[1752171930380,0.72,159.78,159.74,0.22369418]
[1752171930588,0.28432314,159.77,159.75,34.53]
[1752171930782,0.72,159.81,159.75,34.53]
[1752171930783,3.89690213,159.8,159.75,34.53]
[1752171930979,3.89690213,159.8,159.75,33.82]
[1752171930980,0.72,159.79,159.75,33.82]
[1752171931372,3.7684764,159.84,159.76,0.71]
[1752171931606,3.75398861,159.83,159.76,0.71]
[1752171931905,4.47398861,159.83,159.76,0.71]
[1752171932073,7.24249888,159.86,159.76,0.71]
[1752171932276,3.75299866,159.88,159.77,16.78468397]
[1752171932488,0.72,159.89,159.79,16.78468397]
[1752171932687,7.82802962,159.9,159.81,16.78468397]
[1752171932981,3.7523391,159.91,159.82,0.71]
[1752171933183,3.476,159.92,159.83,16.78468397]
[1752171933400,3.476,159.92,159.84,0.71]
[1752171933601,7.22787935,159.92,159.85,34.2]
[1752171933802,6.50787935,159.92,159.85,34.2]
[1752171934126,6.50787935,159.92,159.79,0.71]
[1752171934127,16.78468397,159.9,159.79,0.71]
[1752171934405,16.78468397,159.9,159.71,12.0408]
[1752171934406,0.42648471,159.86,159.8,34.2]
[1752171934607,0.42648471,159.86,159.77,16.78468397]
[1752171934608,1.00432314,159.86,159.81,34.2]
[1752171935117,0.72,159.85,159.81,34.2]
[1752171935695,26.86216157,159.89,159.81,34.91]
[1752171935898,0.28432314,159.88,159.81,34.91]
[1752171937007,0.72,159.87,159.81,34.2]
[1752171938010,4.47326783,159.87,159.81,34.2]
[1752171938385,4.47326783,159.87,159.82,34.16]
[1752171938699,4.47326783,159.87,159.78,16.78468397]
[1752171938700,0.72,159.86,159.83,34.16]
[1752171938882,0.72,159.85,159.83,34.16]
[1752171939485,3.75338797,159.86,159.83,34.16]
[1752171939704,0.72,159.86,159.83,34.16]
[1752171941202,0.72,159.86,159.79,0.71]
[1752171941519,0.72,159.86,159.63,242.56416233]
[1752171941520,0.42648471,159.81,159.74,0.28369418]
[1752171941693,1.14648471,159.81,159.75,68.28]
[1752171942217,0.72,159.8,159.75,68.28]
[1752171942391,0.28432314,159.81,159.75,68.28]
[1752171942587,0.28432314,159.81,159.75,68.99]
[1752171942791,0.28432314,159.81,159.75,68.28]
[1752171943031,26.0,159.79,159.75,68.28]
[1752171943198,26.72,159.79,159.75,68.28]
[1752171943506,26.0,159.79,159.75,68.28]
[1752171943715,26.72,159.79,159.75,68.28]
[1752171943908,26.0,159.79,159.75,68.28]
[1752171944545,26.0,159.79,159.76,68.34]
[1752171944546,1.00432314,159.78,159.76,68.34]
[1752171944817,26.0,159.79,159.76,68.34]
[1752171944992,29.75507795,159.79,159.76,68.34]
[1752171945608,30.47507795,159.79,159.76,68.34]
[1752171945822,30.47507795,159.79,159.77,68.38]
[1752171945823,1.14648471,159.78,159.77,68.38]
[1752171946115,1.00432314,159.78,159.77,68.38]
[1752171946313,3.27699023,159.78,159.77,68.38]
[1752171946618,3.27702981,159.78,159.77,68.38]
[1752171947301,7.03219315,159.78,159.77,68.38]
[1752171947502,26.0,159.75,159.74,0.28369418]
[1752171948221,30.47516334,159.78,159.74,0.28369418]
[1752171948823,30.47516334,159.78,159.75,34.18]
[1752171949520,26.0,159.76,159.75,34.18]
[1752171949700,29.75516334,159.78,159.75,0.71]
[1752171950045,26.0,159.76,159.74,0.28369418]
[1752171950330,26.28432314,159.76,159.75,34.14]
[1752171950495,26.72,159.76,159.75,34.14]
[1752171950697,26.0,159.76,159.75,34.14]
[1752171951616,29.75563345,159.76,159.75,34.14]
[1752171952128,29.75563345,159.76,159.75,34.12]
[1752171952417,29.75563345,159.76,159.75,34.1]
[1752171952797,29.75492834,159.79,159.75,34.1]
[1752171953022,3.00313,159.78,159.75,34.1]
[1752171953227,3.75492834,159.79,159.74,0.28369418]
[1752171953228,0.14216157,159.76,159.74,0.28369418]
[1752171953397,0.14216157,159.76,159.75,34.1]
[1752171953601,32.04095539,159.76,159.75,34.1]
[1752171954128,32.76095539,159.76,159.75,34.1]
[1752171954437,32.76095539,159.76,159.74,0.28369418]
[1752171954726,30.47563345,159.76,159.75,34.08]
[1752171954909,32.76286961,159.76,159.75,34.08]
[1752171955111,32.76286961,159.76,159.74,0.28369418]
[1752171955318,3.00723616,159.75,159.74,0.28369418]
[1752171955519,2.28723616,159.75,159.74,34.34369418]
[1752171955901,3.00723616,159.75,159.74,0.28369418]
[1752171956525,3.00723616,159.75,159.74,34.34369418]
[1752171957299,6.7631047,159.75,159.74,0.28369418]
[1752171957499,6.7631047,159.75,159.74,34.34369418]
[1752171957812,6.0431047,159.75,159.74,34.34369418]
[1752171958218,6.7331047,159.75,159.74,34.34369418]
[1752171958716,6.7331047,159.75,159.74,34.30369418]
[1752171958915,6.0431047,159.75,159.74,34.30369418]
[1752171959546,6.7331047,159.75,159.74,34.30369418]
[1752171959710,6.0431047,159.75,159.74,34.30369418]
[1752171959908,6.05574664,159.75,159.74,34.30369418]
[1752171960110,6.74574664,159.75,159.74,34.30369418]
[1752171960714,2.2998781,159.75,159.74,34.30369418]
[1752171961029,0.03,159.78,159.74,35.02369418]
[1752171961030,2.3298781,159.78,159.74,35.02369418]
[1752171961230,2.2998781,159.77,159.74,34.30369418]
[1752171961445,2.2998781,159.76,159.75,0.72]
[1752171962014,2.2998781,159.77,159.75,34.78]
[1752171962216,2.2998781,159.76,159.75,34.06]
[1752171962427,0.03,159.78,159.75,34.06]
[1752171962731,2.3298781,159.78,159.76,34.78]
[1752171962931,2.2998781,159.77,159.76,34.78]
[1752171963136,0.03,159.78,159.76,34.06]
[1752171963532,2.3298781,159.78,159.76,34.06]
[1752171963854,2.3298781,159.78,159.77,17.50468397]
[1752171964440,2.7828,159.87,159.78,16.78468397]
[1752171964441,3.75323722,159.87,159.78,16.78468397]
[1752171964639,0.69,159.9,159.79,3.33066157]
[1752171964936,13.82320824,159.9,159.8,51.20468397]
[1752171965116,26.0,159.87,159.8,51.20468397]
[1752171965311,26.0,159.87,159.77,27.02]
[1752171965312,4.37941898,159.86,159.77,27.02]
[1752171965514,26.0,159.83,159.78,34.08]
[1752171966038,0.62613486,159.84,159.78,34.08]
[1752171966227,26.62613486,159.85,159.77,27.02]
[1752171966429,26.0,159.83,159.77,27.02]
[1752171966626,1.31613486,159.82,159.77,27.02]
[1752171966941,0.69,159.81,159.78,34.04]
[1752171967434,29.75469336,159.8,159.79,34.04]
[1752171968225,26.0,159.8,159.79,34.04]
[1752171968426,27.31613486,159.8,159.77,27.02]
[1752171968633,26.0,159.79,159.78,34.02]
[1752171969037,26.0,159.8,159.78,34.02]
[1752171969219,29.75447194,159.81,159.78,34.02]
[1752171969220,26.0,159.79,159.78,34.02]
[1752171971039,26.0,159.82,159.78,34.02]
[1752171971550,3.75405275,159.83,159.78,34.02]
[1752171972415,26.0,159.82,159.78,34.02]
[1752171974643,3.75445841,159.81,159.79,34.02]
[1752171975536,3.75445841,159.81,159.8,34.0]
[1752171976064,26.0,159.79,159.77,27.02]
[1752171976222,26.0,159.79,159.78,34.0]
[1752171976548,28.31848237,159.79,159.78,33.98]
[1752171977071,28.31848237,159.79,159.77,27.02]
[1752171977240,26.0,159.79,159.78,33.98]
[1752171977434,28.31882589,159.79,159.78,33.98]
[1752171977647,32.07382049,159.79,159.78,33.98]
[1752171978262,32.07382049,159.79,159.77,27.02]
[1752171978486,2.31882589,159.78,159.77,27.02]
[1752171978841,3.00882589,159.78,159.77,60.96]
[1752171979045,6.76398923,159.78,159.77,27.02]
[1752171979249,26.0,159.75,159.66,40.5752]
[1752171979559,3.63496075,159.74,159.67,33.96]
[1752171979768,2.31882589,159.73,159.67,33.96]
[1752171980052,2.94496075,159.72,159.66,38.2279]
[1752171980274,2.31882589,159.71,159.66,27.02]
[1752171980472,2.31882589,159.7,159.67,33.98]
[1752171980662,2.31882589,159.69,159.67,33.98]
[1752171980988,2.31882589,159.68,159.67,50.76468397]
[1752171981146,26.0,159.73,159.68,16.78468397]
[1752171981351,2.32367784,159.72,159.68,16.78468397]
[1752171981555,2.32367784,159.71,159.68,16.78468397]
[1752171981759,2.32367784,159.7,159.68,16.78468397]
[1752171981966,2.32367784,159.69,159.68,16.78468397]
[1752171983077,2.32367784,159.69,159.68,16.92684554]
[1752171983462,26.0,159.76,159.68,16.92684554]
[1752171983463,2.32367784,159.74,159.68,16.78468397]
[1752171983784,28.32367784,159.73,159.69,0.14216157]
[1752171983992,2.32367784,159.72,159.7,33.96]
[1752171984163,2.32367784,159.71,159.7,50.74468397]
[1752171984572,2.32367784,159.71,159.7,75.92738791]
[1752171984756,2.3263061,159.79,159.7,130.93862105]
[1752171984952,2.3263061,159.78,159.7,121.05797868]
[1752171985154,2.3263061,159.77,159.7,130.93862105]
[1752171985484,2.3263061,159.76,159.7,130.93862105]
[1752171985655,2.3263061,159.75,159.71,10.16496551]
[1752171985859,2.3263061,159.74,159.72,43.82064237]
[1752171986060,0.69,159.84,159.73,10.16496551]
[1752171986274,2.32770857,159.83,159.73,0.28432314]
[1752171986466,26.0,159.81,159.73,0.28432314]
[1752171986787,2.32770857,159.8,159.73,17.21116868]
[1752171987104,2.32770857,159.79,159.73,31.24904606]
[1752171987391,2.32770857,159.78,159.73,31.24904606]
[1752171987568,2.32770857,159.77,159.75,0.14216157]
[1752171987770,26.0,159.84,159.77,16.78468397]
[1752171987973,2.33065327,159.83,159.78,0.14216157]
[1752171988190,3.75281461,159.88,159.79,50.72468397]
[1752171988791,3.75281461,159.88,159.79,77.74468397]
[1752171988963,26.0,159.86,159.79,77.74468397]
[1752171989366,3.75307661,159.87,159.79,77.74468397]
[1752171989590,26.0,159.85,159.8,33.9]
[1752171989965,27.28613486,159.84,159.81,33.9]
[1752171990367,26.66,159.84,159.81,33.9]
[1752171991184,26.0,159.84,159.82,33.88]
[1752171991383,30.41389285,159.84,159.83,33.88]
[1752171991968,26.0,159.83,159.79,27.02]
[1752171992187,26.0,159.83,159.8,33.88]
[1752171992762,26.0,159.83,159.79,27.02]
[1752171992970,0.66,159.82,159.8,33.86]
[1752171993182,0.66,159.81,159.79,27.02]
[1752171993393,4.41469336,159.8,159.79,27.02]
[1752171993589,4.41469336,159.8,159.79,33.84]
[1752171993776,4.41469336,159.8,159.72,43.80468397]
[1752171993975,4.41469336,159.8,159.73,33.84]
[1752171994478,26.0,159.78,159.72,43.80468397]
[1752171994693,26.0,159.78,159.74,33.84]
[1752171995405,26.0,159.8,159.75,16.78468397]
[1752171995580,3.302,159.83,159.75,16.78468397]
[1752171995581,3.75416713,159.83,159.75,16.78468397]
[1752171996401,29.75416713,159.83,159.75,16.78468397]
[1752171997404,26.0,159.83,159.75,16.78468397]
[1752171997897,29.7540834,159.83,159.75,16.78468397]
[1752171999006,30.4140834,159.83,159.75,16.78468397]
[1752171999574,30.4140834,159.83,159.73,16.92684554]
[1752171999575,3.7540834,159.83,159.73,16.92684554]
[1752171999777,0.66,159.82,159.73,16.92684554]
[1752171999979,0.62613486,159.81,159.73,16.78468397]
[1752172000175,26.0,159.79,159.73,16.78468397]
[1752172000411,0.66,159.78,159.74,33.76]
[1752172000586,0.66,159.77,159.72,27.02]
[1752172000789,0.66,159.76,159.73,33.76]
[1752172001294,29.75586854,159.75,159.73,33.76]
[1752172001491,4.41586854,159.75,159.73,33.76]
[1752172002186,3.75586854,159.75,159.73,33.76]
[1752172002782,26.0,159.75,159.72,27.02]
[1752172002978,29.75563345,159.76,159.73,33.76]
[1752172003205,26.0,159.75,159.73,33.76]
[1752172005010,29.75587599,159.75,159.73,33.76]
[1752172005910,29.3138,159.79,159.73,33.76]
[1752172006098,3.75501226,159.79,159.73,33.76]
[1752172006900,26.0,159.77,159.73,33.76]
[1752172007615,26.0,159.79,159.73,33.76]
[1752172008391,26.66,159.79,159.73,33.76]
[1752172008590,0.66,159.78,159.73,33.76]
[1752172008790,26.0,159.79,159.73,33.76]
[1752172009008,0.66,159.78,159.73,33.76]
[1752172009701,0.66,159.78,159.74,33.68]
[1752172009905,4.41518379,159.78,159.74,33.68]
[1752172010114,29.7549914,159.79,159.74,33.68]
[1752172010514,26.0,159.77,159.74,33.68]
[1752172012321,26.66,159.77,159.74,33.68]
[1752172012519,30.41548866,159.77,159.72,27.02]
[1752172012726,0.66,159.76,159.73,33.66]
[1752172013023,0.66,159.76,159.72,27.02]
[1752172013219,0.66,159.75,159.72,27.02]
[1752172013424,0.66,159.74,159.72,27.02]